lending/lending_fUSD_20251124
["ID","MTS","AMOUNT","RATE_DAILY","PERIOD"]
[394850084,1764017838081,-1096.0,0.00042001,30]
[394850085,1764017838107,-1096.0,0.00042001,30]
[394850086,1764017838132,-1096.0,0.00042001,30]
[394850087,1764017838159,-1096.0,0.00042001,30]
[394850088,1764017838185,-1096.0,0.00042001,30]
[394850089,1764017838212,-1096.0,0.00042001,30]
[394850090,1764017838242,-1096.0,0.00042001,30]
[394850091,1764017838267,-1096.0,0.00042001,30]
[394850092,1764017838294,-580.20509844,0.00042001,30]
[394850093,1764017838320,-1096.0,0.00042001,30]
[394850094,1764017838347,-231.0,0.00042001,30]
[394850095,1764017838373,-6486.51,0.00042001,30]
[394850096,1764017838399,-84938.53113493,0.00042001,30]
[394850097,1764017838423,-738.20237862,0.00042001,28]
[394850098,1764017838450,-50000.0,0.00042001,65]
[394850099,1764017838479,-666556.0,0.00042001,60]
[394850100,1764017838507,-10031.8580926,0.00042001,30]
[394850101,1764017838532,-775.0,0.00042001,120]
[394850102,1764017838560,-20937.723072,0.00042001,60]
[394850103,1764017838587,-90000.0,0.00042001,120]
[394850104,1764017838613,-250000.0,0.00042001,60]
[394850105,1764017838641,-252662.27,0.00042001,45]
[394850106,1764017838668,-5759.7950087,0.00042001,30]
[394850107,1764017838695,-648756.20906557,0.00042001,30]
[394850108,1764017838720,-6370.21899503,0.00042001,30]
[394850109,1764017838745,-133002.54159191,0.00042001,30]
[394850110,1764017845562,-441598.79570731,0.00042001,30]
[394850111,1764017845593,-12894.40274879,0.00042001,30]
[394850112,1764017845622,-15164.12348559,0.00042001,30]
[394850113,1764017845652,-17802.50924853,0.00042001,30]
[394850114,1764017845678,-17611.56526399,0.00042001,30]
[394850115,1764017845704,-11570.71324456,0.00042001,30]
[394850116,1764017845732,-200.0,0.00042001,30]
[394850117,1764017845760,-1097.06612104,0.00042001,120]
[394850118,1764017845787,-500.0,0.00042001,31]
[394850119,1764017845819,-500.0,0.00042001,31]
[394850120,1764017845849,-500.0,0.00042001,31]
[394850121,1764017845876,-500.0,0.00042001,31]
[394850122,1764017845902,-500.0,0.00042001,31]
[394850123,1764017845929,-500.0,0.00042001,31]
[394850124,1764017845957,-500.0,0.00042001,31]
[394850125,1764017845984,-500.0,0.00042001,31]
[394850126,1764017846011,-500.0,0.00042001,31]
[394850127,1764017846039,-500.0,0.00042001,31]
[394850128,1764017846067,-500.0,0.00042001,31]
[394850129,1764017846094,-506.83760164,0.00042001,31]
[394850130,1764017848791,500.0,0.00042001,31]
[394850131,1764017849198,500.0,0.00042001,31]
[394850132,1764017849666,500.0,0.00042001,31]
[394850133,1764017849923,500.0,0.00042001,31]
[394850134,1764017850214,500.0,0.00042001,31]
[394850135,1764017850553,500.0,0.00042001,31]
[394850136,1764017850893,500.0,0.00042001,31]
[394850137,1764017851362,500.0,0.00042001,31]
[394850138,1764017851615,500.0,0.00042001,31]
[394850139,1764017851893,500.0,0.00042001,31]
[394850140,1764017852142,500.0,0.00042001,31]
[394850141,1764017852410,500.0,0.00042001,31]
[394850142,1764017852731,500.0,0.00042001,31]
[394850143,1764017853018,500.0,0.00042001,31]
[394850144,1764017853294,500.0,0.00042001,31]
[394850145,1764017853638,500.0,0.00042001,31]
[394850146,1764017853898,500.0,0.00042001,31]
[394850147,1764017854143,500.0,0.00042001,31]
[394850148,1764017854394,500.0,0.00042001,31]
[394850149,1764017854676,500.0,0.00042001,31]
[394850150,1764017854945,500.0,0.00042001,31]
[394850151,1764017855554,500.0,0.00042001,31]
[394850152,1764017855822,500.0,0.00042001,31]
[394850153,1764017856133,159.18984379,0.00042001,31]
[394850154,1764017895823,-160.79948132,0.00023398,45]
[394850155,1764017895855,-166.66,0.00025566,30]
[394850156,1764017895883,-166.66,0.00026104,30]
[394850157,1764017895913,-166.66,0.00026642,30]
[394850158,1764017895940,-1600.0,0.00026864,120]
[394850159,1764017895969,-166.66,0.00027181,30]
[394850160,1764017895995,-500.0,0.00027229,120]
[394850161,1764017896020,-160.79948129,0.00027374,54]
[394850162,1764017896046,-166.66,0.00027719,30]
[394850163,1764017896072,-166.66,0.00028257,30]
[394850164,1764017896100,-1600.0,0.00030222,120]
[394850165,1764017896129,-500.0,0.00031237,120]
[394850166,1764017896155,-160.79948129,0.0003135,64]
[394850167,1764017896185,-1600.0,0.0003358,120]
[394850168,1764017896215,-158.19,0.00034458,120]
[394850169,1764017896240,-1000.0,0.00034458,120]
[394850170,1764017896266,-158.19,0.00034516,120]
[394850171,1764017896461,-158.19,0.00034547,120]
[394850172,1764017896487,-158.19,0.00034579,120]
[394850173,1764017896512,-158.19,0.00034614,120]
[394850174,1764017896536,-158.19,0.00034651,120]
[394850175,1764017896561,-158.19,0.0003469,120]
[394850176,1764017896587,-158.19,0.00034731,120]
[394850177,1764017896612,-158.19,0.00034776,120]
[394850178,1764017896638,-158.19,0.00034825,120]
[394850179,1764017896667,-158.19,0.00034877,120]
[394850180,1764017896693,-158.19,0.00034935,120]
[394850181,1764017896718,-158.19,0.00034999,120]
[394850182,1764017896745,-158.19,0.0003507,120]
[394850183,1764017896770,-158.19,0.00035151,120]
[394850184,1764017896795,-158.19,0.00035244,120]
[394850185,1764017896820,-500.0,0.00035245,120]
[394850186,1764017896845,-503.856226,0.00035245,120]
[394850187,1764017896872,-500.0,0.00035245,120]
[394850188,1764017896898,-426.8933355,0.000353,120]
[394850189,1764017896923,-158.19,0.00035354,120]
[394850190,1764017896948,-158.19,0.00035489,120]
[394850191,1764017896997,-500.0,0.00035616,30]
[394850192,1764017897036,-158.19,0.00035664,120]
[394850193,1764017897064,-500.0,0.00035889,120]
[394850194,1764017897131,-278.5,0.00036856,30]
[394850195,1764017897158,-1600.0,0.00036938,120]
[394850196,1764017897183,-500.0,0.00036978,120]
[394850197,1764017897215,-1458.0,0.00036986,30]
[394850198,1764017897241,-1402.53,0.00036986,30]
[394850199,1764017897271,-500.0,0.00037534,120]
[394850200,1764017897300,-500.0,0.00037808,120]
[394850201,1764017897329,-294.88381576,0.00038082,120]
[394850202,1764017897362,-500.0,0.00038629,120]
[394850203,1764017897387,-500.0,0.0003863,120]
[394850204,1764017897413,-500.0,0.000387,120]
[394850205,1764017897437,-500.0,0.000387,120]
[394850206,1764017897462,-500.0,0.000387,120]
[394850207,1764017897487,-500.0,0.000387,120]
[394850208,1764017897512,-500.0,0.000387,120]
[394850209,1764017897537,-500.0,0.000387,120]
[394850210,1764017897560,-500.0,0.000387,120]
[394850211,1764017897585,-500.0,0.000387,120]
[394850212,1764017897610,-500.0,0.000387,120]
[394850213,1764017897635,-500.0,0.000387,120]
[394850214,1764017897661,-500.0,0.000387,120]
[394850215,1764017897686,-500.0,0.000387,120]
[394850216,1764017897713,-500.0,0.000387,120]
[394850217,1764017897738,-500.0,0.000387,120]
[394850218,1764017897764,-500.0,0.000387,120]
[394850219,1764017897789,-500.0,0.000387,120]
[394850220,1764017897813,-500.0,0.000387,120]
[394850221,1764017897838,-500.0,0.000387,120]
[394850222,1764017897862,-500.0,0.000387,120]
[394850223,1764017897887,-500.0,0.000387,120]
[394850224,1764017897912,-500.0,0.000387,120]
[394850225,1764017897938,-500.0,0.000387,120]
[394850226,1764017897963,-500.0,0.000387,120]
[394850227,1764017897988,-500.0,0.000387,120]
[394850228,1764017898012,-500.0,0.00038711,120]
[394850229,1764017898040,-964.589,0.00038888,30]
[394850230,1764017898066,-272.78,0.000389,30]
[394850231,1764017898100,-273.02,0.000392,30]
[394850232,1764017898135,-272.78,0.000397,30]
[394850233,1764017898166,-488.31,0.0004,120]
[394850234,1764017898191,-10000.0,0.0004,120]
[394850235,1764017898221,-1600.0,0.00040296,120]
[394850236,1764017898249,-500.0,0.00040444,120]
[394850237,1764017898277,-526.93476447,0.00040658,120]
[394850238,1764017898303,-272.78,0.000407,30]
[394850239,1764017898333,-611.0,0.00040707,30]
[394850240,1764017898363,-197632.2,0.00041,90]
[394850241,1764017898389,-3011.17,0.00041,120]
[394850242,1764017898414,-164.0,0.00041,90]
[394850243,1764017898440,-150.0,0.00041096,30]
[394850244,1764017898465,-475.0,0.00041096,120]
[394850245,1764017898490,-161.20444783,0.00041109,30]
[394850246,1764017898516,-150.0,0.00041113,30]
[394850247,1764017898542,-611.0,0.00041127,30]
[394850248,1764017898572,-150.0,0.00041133,30]
[394850249,1764017898597,-150.0,0.00041133,30]
[394850250,1764017898624,-161.20444783,0.00041152,30]
[394850251,1764017898654,-150.0,0.0004116,30]
[394850252,1764017898679,-150.0,0.0004116,30]
[394850253,1764017898870,-150.0,0.00041172,30]
[394850254,1764017898897,-150.0,0.00041178,30]
[394850255,1764017898922,-150.0,0.00041178,30]
[394850256,1764017898949,-161.20444783,0.00041194,30]
[394850257,1764017898974,-150.0,0.000412,30]
[394850258,1764017899000,-150.0,0.00041224,30]
[394850259,1764017899026,-150.0,0.00041231,30]
[394850260,1764017899051,-152.61743579,0.00041233,30]
[394850261,1764017899077,-475.0,0.00041233,120]
[394850262,1764017899103,-150.0,0.00041236,30]
[394850263,1764017899130,-150.0,0.00041236,30]
[394850264,1764017899157,-161.20444783,0.00041236,30]
[394850265,1764017899184,-150.0,0.00041236,30]
[394850266,1764017899209,-150.0,0.00041236,30]
[394850267,1764017899235,-150.0,0.00041267,30]
[394850268,1764017899263,-150.0,0.0004127,30]
[394850269,1764017899288,-150.0,0.0004127,30]
[394850270,1764017899315,-161.20444783,0.00041279,30]
[394850271,1764017899341,-150.0,0.0004129,30]
[394850272,1764017899369,-272.78,0.000413,30]
[394850273,1764017899395,-150.0,0.000413,30]
[394850274,1764017899420,-150.0,0.000413,30]
[394850275,1764017899445,-150.0,0.00041313,30]
[394850276,1764017899471,-150.0,0.00041313,30]
[394850277,1764017899497,-150.0,0.00041315,30]
[394850278,1764017899523,-161.20444783,0.00041321,30]
[394850279,1764017899549,-150.0,0.00041333,30]
[394850280,1764017899574,-150.0,0.00041349,30]
[394850281,1764017899603,-150.0,0.00041361,30]
[394850282,1764017899629,-150.0,0.00041361,30]
[394850283,1764017899657,-161.20444783,0.00041364,30]
[394850284,1764017899686,-500.0,0.00041369,120]
[394850285,1764017899712,-475.0,0.0004137,120]
[394850286,1764017899740,-1300.0,0.00041371,60]
[394850287,1764017899766,-500.0,0.00041371,60]
[394850288,1764017899792,-150.0,0.00041389,30]
[394850289,1764017899818,-150.0,0.00041389,30]
[394850290,1764017899844,-150.0,0.000414,30]
[394850291,1764017899869,-161.20444783,0.00041406,30]
[394850292,1764017899896,-150.0,0.00041407,30]
[394850293,1764017899922,-150.0,0.00041408,30]
[394850294,1764017899946,-200.0,0.00041414,120]
[394850295,1764017899971,-161.20444783,0.00041448,30]
[394850296,1764017899996,-150.0,0.00041452,30]
[394850297,1764017900020,-150.0,0.00041452,30]
[394850298,1764017900049,-150.0,0.00041465,30]
[394850299,1764017900075,-150.0,0.00041465,30]
[394850300,1764017900103,-150.0,0.00041467,30]
[394850301,1764017900131,-150.0,0.00041468,30]
[394850302,1764017900157,-161.20444783,0.00041491,30]
[394850303,1764017900183,-150.0,0.00041498,30]
[394850304,1764017900214,-475.0,0.00041507,120]
[394850305,1764017900251,-150.0,0.00041527,30]
[394850306,1764017900289,-150.0,0.00041533,30]
[394850307,1764017900327,-161.20444783,0.00041533,30]
[394850308,1764017900361,-150.0,0.00041542,30]
[394850309,1764017900394,-150.0,0.00041542,30]
[394850310,1764017900434,-150.0,0.00041543,30]
[394850311,1764017900469,-150.0,0.00041543,30]
[394850312,1764017900504,-611.0,0.00041546,30]
[394850313,1764017900538,-161.20444783,0.00041576,30]
[394850314,1764017900572,-150.0,0.00041586,30]
[394850315,1764017900609,-150.0,0.00041589,30]
[394850316,1764017900641,-152.7,0.000416,30]
[394850317,1764017900675,-150.0,0.000416,30]
[394850318,1764017900710,-150.0,0.00041618,30]
[394850319,1764017900740,-150.0,0.00041618,30]
[394850320,1764017900773,-161.20444783,0.00041618,30]
[394850321,1764017900802,-150.0,0.00041618,30]
[394850322,1764017900833,-150.0,0.00041618,30]
[394850323,1764017900867,-150.0,0.00041635,30]
[394850324,1764017900899,-150.0,0.00041635,30]
[394850325,1764017900932,-475.0,0.00041644,120]
[394850326,1764017900965,-150.0,0.00041645,30]
[394850327,1764017900998,-161.20444783,0.00041661,30]
[394850328,1764017901029,-150.0,0.00041667,30]
[394850329,1764017901060,-150.0,0.0004168,30]
[394850330,1764017901092,-150.0,0.00041695,30]
[394850331,1764017901123,-150.0,0.00041695,30]
[394850332,1764017901153,-955.7479168,0.00041695,30]
[394850333,1764017901186,-161.20444783,0.00041703,30]
[394850334,1764017901222,-150.0,0.00041704,30]
[394850335,1764017901254,-150.0,0.00041726,30]
[394850336,1764017901285,-150.0,0.00041726,30]
[394850337,1764017901317,-150.0,0.00041733,30]
[394850338,1764017901349,-161.20444783,0.00041745,30]
[394850339,1764017901380,-500.0,0.00041748,30]
[394850340,1764017901410,-150.0,0.00041763,30]
[394850341,1764017901442,-328.26041596,0.0004177,120]
[394850342,1764017901475,-150.0,0.00041771,30]
[394850343,1764017901506,-150.0,0.00041771,30]
[394850344,1764017901539,-150.0,0.00041772,30]
[394850345,1764017901573,-475.0,0.00041781,120]
[394850346,1764017901606,-161.20444783,0.00041788,30]
[394850347,1764017901633,-100000.0,0.00041791,30]
[394850348,1764017901658,-600.4249106,0.000418,39]
[394850349,1764017901683,-150.0,0.000418,30]
[394850350,1764017901707,-150.0,0.00041817,30]
[394850351,1764017901733,-150.0,0.00041817,30]
[394850352,1764017901758,-150.0,0.00041823,30]
[394850353,1764017902011,-161.20444783,0.0004183,30]
[394850354,1764017902060,-150.0,0.00041847,30]
[394850355,1764017902086,-150.0,0.00041847,30]
[394850356,1764017902113,-150.0,0.00041863,30]
[394850357,1764017902138,-150.0,0.00041867,30]
[394850358,1764017902165,-161.20444783,0.00041873,30]
[394850359,1764017902190,-150.0,0.00041882,30]
[394850360,1764017902217,-191.42061423,0.000419,120]
[394850361,1764017902244,-185.73672861,0.000419,120]
[394850362,1764017902269,-189.15865494,0.000419,120]
[394850363,1764017902294,-176.09584438,0.000419,120]
[394850364,1764017902320,-150.0,0.00041909,30]
[394850365,1764017902346,-150.0,0.00041909,30]
[394850366,1764017902373,-161.20444783,0.00041915,30]
[394850367,1764017902397,-475.0,0.00041918,120]
[394850368,1764017902423,-1300.0,0.00041919,60]
[394850369,1764017902448,-500.0,0.00041919,60]
[394850370,1764017902473,-150.0,0.00041924,30]
[394850371,1764017902499,-150.0,0.00041924,30]
[394850372,1764017902525,-150.0,0.00041933,30]
[394850373,1764017902550,-150.0,0.00041941,30]
[394850374,1764017902575,-150.0,0.00041954,30]
[394850375,1764017902600,-161.20444783,0.00041958,30]
[394850376,1764017902625,-611.0,0.00041966,30]
[394850377,1764017902655,-1000.0,0.00041999,120]
[394850378,1764017902681,-171.12774057,0.00042,30]
[394850379,1764017902707,-150.0,0.00042,30]
[394850380,1764017902731,-150.0,0.00042,30]
[394850381,1764017902755,-172.51847936,0.00042,30]
[394850382,1764017902780,-150.0,0.00042,30]
[394850383,1764017902805,-215.6820983,0.00042,30]
[394850384,1764017902830,-153.23992756,0.00042,30]
[394850385,1764017902855,-180.37972201,0.00042,30]
[394850386,1764017902880,-150.0,0.00042,30]
[394850387,1764017902905,-161.20444783,0.00042,30]
[394850388,1764017902929,-151.72687124,0.00042,30]
[394850389,1764017902954,-150.50740982,0.00042,30]
[394850390,1764017902979,-243.11951109,0.00042,30]
[394850391,1764017903005,-150.0,0.00042,30]
[394850392,1764017903030,-152.00272824,0.00042,30]
[394850393,1764017903055,-192.05780362,0.00042001,30]
[394850394,1764017903082,-181.57871769,0.00042001,31]
[394850395,1764017903125,-151.0,0.00042001,120]
[394850396,1764017903153,-153.763947,0.00042001,90]
[394850397,1764017903181,-152.947496,0.00042001,120]
[394850398,1764017903209,-159.683086,0.00042001,120]
[394850399,1764017903240,-151.0,0.00042001,120]
[394850400,1764017903268,-152.155284,0.00042001,120]
[394850401,1764017903296,-151.0,0.00042001,120]
[394850402,1764017903324,-155.71633,0.00042001,120]
[394850403,1764017903351,-153.699742,0.00042001,120]
[394850404,1764017903379,-153.498539,0.00042001,120]
[394850405,1764017903405,-152.664258,0.00042001,120]
[394850406,1764017903433,-227.386626,0.00042001,120]
[394850407,1764017903460,-151.0,0.00042001,120]
[394850408,1764017903487,-151.0,0.00042001,120]
[394850409,1764017903514,-237.818391,0.00042001,120]
[394850410,1764017903542,-151.0,0.00042001,120]
[394850411,1764017903573,-159.962245,0.00042001,120]
[394850412,1764017903601,-151.0,0.00042001,120]
[394850413,1764017903630,-286.502955,0.00042001,120]
[394850414,1764017903657,-276.322266,0.00042001,120]
[394850415,1764017903684,-151.0,0.00042001,120]
[394850416,1764017903709,-151.0,0.00042001,30]
[394850417,1764017903735,-151.0,0.00042001,30]
[394850418,1764017903761,-152.482923,0.00042001,30]
[394850419,1764017903788,-151.0,0.00042001,120]
[394850420,1764017903815,-151.0,0.00042001,120]
[394850421,1764017903842,-151.0,0.00042001,120]
[394850422,1764017903870,-170.460237,0.00042001,120]
[394850423,1764017903897,-151.0,0.00042001,120]
[394850424,1764017903922,-151.0,0.00042001,120]
[394850425,1764017903948,-151.0,0.00042001,120]
[394850426,1764017903976,-151.0,0.00042001,120]
[394850427,1764017904002,-176.847926,0.00042001,120]
[394850428,1764017904029,-151.0,0.00042001,120]
[394850429,1764017904056,-151.0,0.00042001,120]
[394850430,1764017904084,-151.0,0.00042001,120]
[394850431,1764017904113,-151.0,0.00042001,120]
[394850432,1764017904143,-151.0,0.00042001,120]
[394850433,1764017904174,-151.0,0.00042001,120]
[394850434,1764017904203,-151.0,0.00042001,120]
[394850435,1764017904232,-151.0,0.00042001,120]
[394850436,1764017904261,-151.0,0.00042001,120]
[394850437,1764017904291,-151.0,0.00042001,120]
[394850438,1764017904320,-151.0,0.00042001,120]
[394850439,1764017904350,-151.0,0.00042001,120]
[394850440,1764017904383,-151.0,0.00042001,120]
[394850441,1764017904411,-151.0,0.00042001,120]
[394850442,1764017904438,-151.0,0.00042001,120]
[394850443,1764017904466,-151.0,0.00042001,120]
[394850444,1764017904492,-151.0,0.00042001,120]
[394850445,1764017904662,-189.291928,0.00042001,120]
[394850446,1764017904689,-151.0,0.00042001,120]
[394850447,1764017904715,-151.0,0.00042001,120]
[394850448,1764017904743,-156.455003,0.00042001,120]
[394850449,1764017904768,-151.0,0.00042001,120]
[394850450,1764017904794,-151.0,0.00042001,120]
[394850451,1764017904819,-151.0,0.00042001,120]
[394850452,1764017904845,-151.0,0.00042001,120]
[394850453,1764017904872,-293.125367,0.00042001,120]
[394850454,1764017904899,-151.0,0.00042001,120]
[394850455,1764017904927,-151.0,0.00042001,120]
[394850456,1764017904954,-151.0,0.00042001,120]
[394850457,1764017904984,-151.0,0.00042001,120]
[394850458,1764017905010,-151.0,0.00042001,120]
[394850459,1764017905036,-151.0,0.00042001,120]
[394850460,1764017905062,-246.19281,0.00042001,120]
[394850461,1764017905092,-151.0,0.00042001,120]
[394850462,1764017905118,-151.0,0.00042001,120]
[394850463,1764017905145,-151.0,0.00042001,120]
[394850464,1764017905172,-151.0,0.00042001,120]
[394850465,1764017905199,-151.0,0.00042001,120]
[394850466,1764017905227,-151.0,0.00042001,120]
[394850467,1764017905257,-152.67406,0.00042001,120]
[394850468,1764017905287,-151.0,0.00042001,120]
[394850469,1764017905313,-151.0,0.00042001,120]
[394850470,1764017905339,-151.0,0.00042001,120]
[394850471,1764017905364,-151.0,0.00042001,120]
[394850472,1764017905393,-151.0,0.00042001,120]
[394850473,1764017905419,-151.0,0.00042001,120]
[394850474,1764017905449,-151.0,0.00042001,120]
[394850475,1764017905477,-151.0,0.00042001,120]
[394850476,1764017905506,-267.665793,0.00042001,120]
[394850477,1764017905534,-284.782803,0.00042001,120]
[394850478,1764017905560,-151.0,0.00042001,120]
[394850479,1764017905586,-151.0,0.00042001,120]
[394850480,1764017905612,-154.808306,0.00042001,120]
[394850481,1764017905638,-151.0,0.00042001,120]
[394850482,1764017905668,-180.853537,0.00042001,120]
[394850483,1764017905694,-151.0,0.00042001,60]
[394850484,1764017905720,-151.0,0.00042001,120]
[394850485,1764017905745,-151.0,0.00042001,120]
[394850486,1764017905770,-151.0,0.00042001,60]
[394850487,1764017905795,-151.0,0.00042001,120]
[394850488,1764017905820,-157.865048,0.00042001,120]
[394850489,1764017905846,-151.0,0.00042001,60]
[394850490,1764017905871,-151.0,0.00042001,120]
[394850491,1764017905897,-151.0,0.00042001,120]
[394850492,1764017905922,-151.0,0.00042001,120]
[394850493,1764017905948,-151.0,0.00042001,120]
[394850494,1764017905975,-151.0,0.00042001,120]
[394850495,1764017906001,-151.0,0.00042001,120]
[394850496,1764017906029,-151.0,0.00042001,120]
[394850497,1764017906054,-151.0,0.00042001,120]
[394850498,1764017906082,-151.0,0.00042001,120]
[394850499,1764017906110,-151.0,0.00042001,120]
[394850500,1764017906144,-151.0,0.00042001,120]
[394850501,1764017906172,-151.0,0.00042001,120]
[394850502,1764017906203,-175.259713,0.00042001,120]
[394850503,1764017906232,-151.0,0.00042001,120]
[394850504,1764017906260,-151.0,0.00042001,120]
[394850505,1764017906288,-151.0,0.00042001,120]
[394850506,1764017906316,-162.138015,0.00042001,120]
[394850507,1764017906343,-151.0,0.00042001,120]
[394850508,1764017906370,-151.0,0.00042001,120]
[394850509,1764017906397,-151.0,0.00042001,120]
[394850510,1764017906424,-218.86851,0.00042001,120]
[394850511,1764017906452,-151.0,0.00042001,120]
[394850512,1764017906478,-151.0,0.00042001,120]
[394850513,1764017906507,-151.0,0.00042001,120]
[394850514,1764017906534,-151.0,0.00042001,120]
[394850515,1764017906560,-151.0,0.00042001,120]
[394850516,1764017906586,-151.0,0.00042001,120]
[394850517,1764017906613,-151.0,0.00042001,120]
[394850518,1764017906638,-151.0,0.00042001,120]
[394850519,1764017906667,-151.0,0.00042001,120]
[394850520,1764017906695,-151.0,0.00042001,120]
[394850521,1764017906721,-151.0,0.00042001,120]
[394850522,1764017906750,-151.0,0.00042001,120]
[394850523,1764017906775,-282.0287,0.00042001,120]
[394850524,1764017906801,-259.692237,0.00042001,120]
[394850525,1764017906828,-151.0,0.00042001,120]
[394850526,1764017906853,-499.7485,0.00042001,120]
[394850527,1764017906879,-151.0,0.00042001,120]
[394850528,1764017906907,-499.7485,0.00042001,120]
[394850529,1764017906933,-151.0,0.00042001,120]
[394850530,1764017906960,-499.7485,0.00042001,120]
[394850531,1764017906989,-151.0,0.00042001,120]
[394850532,1764017907016,-499.7485,0.00042001,120]
[394850533,1764017907050,-154.374878,0.00042001,120]
[394850534,1764017907077,-499.7485,0.00042001,120]
[394850535,1764017907104,-499.7485,0.00042001,120]
[394850536,1764017907130,-499.7485,0.00042001,120]
[394850537,1764017907158,-499.7485,0.00042001,120]
[394850538,1764017907184,-169.689645,0.00042001,120]
[394850539,1764017907212,-499.7485,0.00042001,120]
[394850540,1764017907364,-499.7485,0.00042001,120]
[394850541,1764017907405,-499.7485,0.00042001,120]
[394850542,1764017907433,-499.7485,0.00042001,120]
[394850543,1764017907459,-499.7485,0.00042001,120]
[394850544,1764017907486,-499.7485,0.00042001,120]
[394850545,1764017907512,-499.7485,0.00042001,120]
[394850546,1764017907539,-499.7485,0.00042001,120]
[394850547,1764017907565,-499.7485,0.00042001,120]
[394850548,1764017907593,-499.7485,0.00042001,120]
[394850549,1764017907620,-499.7485,0.00042001,120]
[394850550,1764017907646,-499.7485,0.00042001,120]
[394850551,1764017907676,-151.0,0.00042001,120]
[394850552,1764017907702,-151.0,0.00042001,120]
[394850553,1764017907730,-200.411106,0.00042001,120]
[394850554,1764017907756,-153.648457,0.00042001,120]
[394850555,1764017907783,-151.430441,0.00042001,120]
[394850556,1764017907809,-151.0,0.00042001,120]
[394850557,1764017907836,-151.0,0.00042001,120]
[394850558,1764017907863,-245.8898,0.00042001,120]
[394850559,1764017907889,-158.241911,0.00042001,120]
[394850560,1764017907915,-151.0,0.00042001,120]
[394850561,1764017907942,-154.926952,0.00042001,120]
[394850562,1764017907968,-151.0,0.00042001,120]
[394850563,1764017907993,-151.0,0.00042001,120]
[394850564,1764017908019,-151.0,0.00042001,120]
[394850565,1764017908045,-151.0,0.00042001,120]
[394850566,1764017908072,-151.0,0.00042001,120]
[394850567,1764017908098,-155.308666,0.00042001,120]
[394850568,1764017908125,-151.0,0.00042001,120]
[394850569,1764017908152,-151.0,0.00042001,120]
[394850570,1764017908180,-151.0,0.00042001,120]
[394850571,1764017908206,-159.711177,0.00042001,120]
[394850572,1764017908232,-151.0,0.00042001,60]
[394850573,1764017908258,-151.0,0.00042001,60]
[394850574,1764017908286,-169.651907,0.00042001,60]
[394850575,1764017908314,-151.0,0.00042001,120]
[394850576,1764017908342,-151.0,0.00042001,120]
[394850577,1764017908371,-151.0,0.00042001,120]
[394850578,1764017908399,-151.0,0.00042001,120]
[394850579,1764017908426,-151.0,0.00042001,120]
[394850580,1764017908452,-151.0,0.00042001,120]
[394850581,1764017908487,-262.922461,0.00042001,120]
[394850582,1764017908514,-151.0,0.00042001,120]
[394850583,1764017908541,-151.0,0.00042001,120]